{"text_format":"3","workbook":"xlsx","n_sheets":1,"sheets":["PRODUCE"],"read":"whole","date_system":"1900"}

{"sheet":"PRODUCE","index":0,"n_rows":87,"n_cols":12,"rows_kept":87,"merged":[[0,0,1,11],[2,0,2,6],[2,7,2,11],[3,1,4,1],[3,2,4,2],[3,4,3,5],[3,7,4,7],[3,8,4,8]]}
["Produce Bid School Year 2022-2023 Bid# SN-23-03"]
[]
["Vendor Name:"]
[null,"ITEM NAME","DESCRIPTION","EST.","Packaging",null,"Preffered Brand","Brand","Vendor ID","Case  ","Serving ","Price "]
[{"$nulls":3},"Usage","Bulk","IW","or equivelent",null,null,"Price","in Case","Per Serving"]
[1,"Apples, Fugi, Sliced","Must meet 1/2 cup requirement IW",50,null,"x","USA sourced produce. California preferred",null,null,0,null,{"$f":"J6/K6","v":{"$error":"#DIV/0!"}}]
[2,"Apples, Fugi, Whole","138ct Case",50,"x",null,"USA sourced produce. California preferred",{"$nulls":4},{"$f":"J7/K7","v":{"$error":"#DIV/0!"}}]
[3,"Apples, Gala, Sliced","Must meet 1/2 cup requirement IW",50,null,"x","USA sourced produce. California preferred",{"$nulls":4},{"$error":"#DIV/0!"}]
[4,"Apples, Gala, Whole","138ct Case",50,"x",null,"USA sourced produce. California preferred",{"$nulls":4},{"$error":"#DIV/0!"}]
[5,"Apples, Gold, Sliced","Must meet 1/2 cup requirement IW",50,null,"x","USA sourced produce. California preferred",{"$nulls":4},{"$error":"#DIV/0!"}]
[6,"Apples, Gold, Whole","138ct Case",50,"x",null,"USA sourced produce. California preferred",{"$nulls":4},{"$error":"#DIV/0!"}]
[7,"Apples, Red, Sliced","Must meet 1/2 cup requirement IW",1500,null,"x","USA sourced produce. California preferred",{"$nulls":4},{"$error":"#DIV/0!"}]
[8,"Apples, Red, Whole","138ct Case",3000,"x",null,"USA sourced produce. California preferred",{"$nulls":4},{"$error":"#DIV/0!"}]
[9,"Bananas, Whole, Large","Must meet 1/2 cup requirement IW",3000,"x",null,"USA sourced produce. California preferred",{"$nulls":4},{"$error":"#DIV/0!"}]
[10,"Bananas, Whole, Supper, Petite","150ct. case",1500,"x",null,"USA sourced produce. California preferred",{"$nulls":4},{"$error":"#DIV/0!"}]
[11,"Basil, Fresh","1 lbs bag",20,null,null,"USA sourced produce. California preferred",{"$nulls":4},{"$error":"#DIV/0!"}]
[12,"Berry, Blueberry","Basket",50,null,null,"USA sourced produce. California preferred",{"$nulls":4},{"$error":"#DIV/0!"}]
[13,"Berry, Raspberry","Basket",50,null,null,"USA sourced produce. California preferred",{"$nulls":4},{"$error":"#DIV/0!"}]
[14,"Berry, Strawberry","Basket",50,null,null,"USA sourced produce. California preferred",{"$nulls":4},{"$error":"#DIV/0!"}]
[15,"Broccoli, Florets, Small Cut","5 lbs. bag",50,"x",null,"USA sourced produce. California preferred",{"$nulls":4},{"$error":"#DIV/0!"}]
[16,"Broccoli, Florets, Small Cut","Must meet 1/2 cup requirement IW",150,null,"x","USA sourced produce. California preferred",{"$nulls":4},{"$error":"#DIV/0!"}]
[17,"Cabbage, Purple, shredded","5 lbs. bag",10,"x",null,"USA sourced produce. California preferred",{"$nulls":4},{"$error":"#DIV/0!"}]
[18,"Cantaloupe, Fresh, Chunks","5 lbs. bag",100,"x",null,"USA sourced produce. California preferred",{"$nulls":4},{"$error":"#DIV/0!"}]
[19,"Cantaloupe, Fresh, Chunks","Must meet 1/2 cup requirement IW",100,null,"x","USA sourced produce. California preferred",{"$nulls":4},{"$error":"#DIV/0!"}]
[20,"Carrots, Baby","5 lbs. bag",1000,"x",null,"USA sourced produce. California preferred",{"$nulls":4},{"$error":"#DIV/0!"}]
[21,"Carrots, Baby,","Must meet 1/2 cup requirement IW",3500,null,"x","USA sourced produce. California preferred",{"$nulls":4},{"$error":"#DIV/0!"}]
[22,"Carrots, Shredded","5 lbs. bag",25,"x",null,"USA sourced produce. California preferred",{"$nulls":4},{"$error":"#DIV/0!"}]
[23,"Cauliflower, Florets, Small Cut","5 lbs. bag",100,"x",null,"USA sourced produce. California preferred",{"$nulls":4},{"$error":"#DIV/0!"}]
[24,"Cauliflower, Florets, Small Cut","Must meet 1/2 cup requirement IW",1000,null,"x","USA sourced produce. California preferred",{"$nulls":4},{"$error":"#DIV/0!"}]
[25,"Celery, Sticks, Fresh","Must meet 1/2 cup requirement IW",2000,null,"x","USA sourced produce. California preferred",{"$nulls":4},{"$error":"#DIV/0!"}]
[26,"Celery/Carrot Stick Mix, Fresh","Must meet 1/2 cup requirement IW",500,null,"x","USA sourced produce. California preferred",{"$nulls":4},{"$error":"#DIV/0!"}]
[27,"Cilantro, Fresh, cut","1 lbs. Bag",50,"x",null,"USA sourced produce. California preferred",{"$nulls":4},{"$error":"#DIV/0!"}]
[28,"Cucumber, Sliced, Coins","5 lbs. bag",100,"x",null,"USA sourced produce. California preferred",{"$nulls":4},{"$error":"#DIV/0!"}]
[29,"Cucumber, Sliced, Coins","Must meet 1/2 cup requirement IW",2000,null,"x","USA sourced produce. California preferred",{"$nulls":4},{"$error":"#DIV/0!"}]
[30,"Cucumber, Whole",null,2000,"x",null,"USA sourced produce. California preferred",{"$nulls":4},{"$error":"#DIV/0!"}]
[31,"Fresh Fruit, Diced, Luau Mix","#2 lbs. bucket",20,"x",null,"USA sourced produce. California preferred",{"$nulls":4},{"$error":"#DIV/0!"}]
[32,"Garlic, Whole","Each",10,null,null,"USA sourced produce. California preferred",{"$nulls":4},{"$error":"#DIV/0!"}]
[33,"Grapes, Bulk, Green","2 lbs bag",50,null,null,"USA sourced produce. California preferred",{"$nulls":4},{"$error":"#DIV/0!"}]
[34,"Grapes, Bulk, Purple","2 lbs bag",50,null,null,"USA sourced produce. California preferred",{"$nulls":4},{"$error":"#DIV/0!"}]
[35,"Grapes, Seedless","Must meet 1/2 cup requirement IW",3000,null,"x","USA sourced produce. California preferred",{"$nulls":4},{"$error":"#DIV/0!"}]
[36,"Honeydew, Chunks","Must meet 1/2 cup requirement IW",500,null,"x","USA sourced produce. California preferred",{"$nulls":4},{"$error":"#DIV/0!"}]
[37,"Honeydew, Chunks, Fresh","5 lbs. bag",100,"x",null,"USA sourced produce. California preferred",{"$nulls":4},{"$error":"#DIV/0!"}]
[38,"Jicama, Sticks, Fresh","Must meet 1/2 cup requirement IW",500,null,"x","USA sourced produce. California preferred",{"$nulls":4},{"$error":"#DIV/0!"}]
[39,"Jicama, Sticks, Fresh,","5 lbs. bag",100,"x",null,"USA sourced produce. California preferred",{"$nulls":4},{"$error":"#DIV/0!"}]
[40,"Kale","3 lbs bag",50,null,null,"USA sourced produce. California preferred",{"$nulls":4},{"$error":"#DIV/0!"}]
[41,"Lettuce Blend, Carrots, Cabbage, Iceberg, Romaine","6/2# bags",10,"x",null,"USA sourced produce. California preferred",{"$nulls":4},{"$error":"#DIV/0!"}]
[42,"Lettuce, Iceberg, Bulk","24 Head Case",25,"x",null,"USA sourced produce. California preferred",{"$nulls":4},{"$error":"#DIV/0!"}]
[43,"Lettuce, Iceberg, Shredded","20# case",25,"x",null,"USA sourced produce. California preferred",{"$nulls":4},{"$error":"#DIV/0!"}]
[44,"Lettuce, Romaine, Chopped","6/2# bags",500,"x",null,"USA sourced produce. California preferred",{"$nulls":4},{"$error":"#DIV/0!"}]
[45,"Lettuce, Romaine, fillets","Pre washed",10,"x",null,"USA sourced produce. California preferred",{"$nulls":4},{"$error":"#DIV/0!"}]
[46,"Lettuce, Romaine, whole","24 Head Case",50,"x",null,"USA sourced produce. California preferred",{"$nulls":4},{"$error":"#DIV/0!"}]
[47,"Lettuce, Spring Mix","3 lbs bag",100,null,null,"USA sourced produce. California preferred",{"$nulls":4},{"$error":"#DIV/0!"}]
[48,"Melon, Honeydew, Whole",null,100,null,null,"USA sourced produce. California preferred",{"$nulls":4},{"$error":"#DIV/0!"}]
[49,"Melon, Watermelon, Whole",null,100,null,null,"USA sourced produce. California preferred",{"$nulls":4},{"$error":"#DIV/0!"}]
[50,"Melons, Cantaloupe, Whole",null,100,null,null,"USA sourced produce. California preferred",{"$nulls":4},{"$error":"#DIV/0!"}]
[51,"Mint Leaves, Fresh","1 lbs. bag",10,null,null,"USA sourced produce. California preferred",{"$nulls":4},{"$error":"#DIV/0!"}]
[52,"Mushrooms, bulk","1 lbs bag",100,null,null,"USA sourced produce. California preferred",{"$nulls":4},{"$error":"#DIV/0!"}]
[53,"Nectarines","110 ct Case",250,null,null,"USA sourced produce. California preferred",{"$nulls":4},{"$error":"#DIV/0!"}]
[54,"Onions, Bulk, Whole, Red","#25 lbs. bag",5,"x",null,"USA sourced produce. California preferred",{"$nulls":4},{"$error":"#DIV/0!"}]
[55,"Onions, White, Bulk","5 lbs bag",25,null,null,"USA sourced produce. California preferred",{"$nulls":4},{"$error":"#DIV/0!"}]
[56,"Onions, Yellow, Bulk","5 lbs bag",25,null,null,"USA sourced produce. California preferred",{"$nulls":4},{"$error":"#DIV/0!"}]
[57,"Oranges, Wedged, Fresh","Must meet 1/2 cup requirement IW",500,null,"x","USA sourced produce. California preferred",{"$nulls":4},{"$error":"#DIV/0!"}]
[58,"Oranges, Whole, Fresh","135ct. case",2000,"x",null,"USA sourced produce. California preferred",{"$nulls":4},{"$error":"#DIV/0!"}]
[59,"Parsley, Fresh","1 lbs. bag",10,null,null,"USA sourced produce. California preferred",{"$nulls":4},{"$error":"#DIV/0!"}]
[60,"Peaches","110 ct Case",250,null,null,"USA sourced produce. California preferred",{"$nulls":4},{"$error":"#DIV/0!"}]
[61,"Pears, Whole, Fresh","138ct Case",2000,"x",null,"USA sourced produce. California preferred",{"$nulls":4},{"$error":"#DIV/0!"}]
[62,"Pepper, Serrano","1 lbs bag",25,null,null,"USA sourced produce. California preferred",{"$nulls":4},{"$error":"#DIV/0!"}]
[63,"Pepper, Yellow","1 lbs bag",25,null,null,"USA sourced produce. California preferred",{"$nulls":4},{"$error":"#DIV/0!"}]
[64,"Peppers, Bell, Green","1 lbs bag",25,null,null,"USA sourced produce. California preferred",{"$nulls":4},{"$error":"#DIV/0!"}]
[65,"Peppers, Bell, Red","1 lbs bag",25,null,null,"USA sourced produce. California preferred",{"$nulls":4},{"$error":"#DIV/0!"}]
[66,"Peppers, Bell, Yellow","1 lbs bag",25,null,null,"USA sourced produce. California preferred",{"$nulls":4},{"$f":"J71/K71","v":{"$error":"#DIV/0!"}}]
[67,"Peppers, Jalapenos","1 lbs bag",25,null,null,"USA sourced produce. California preferred",{"$nulls":4},{"$error":"#DIV/0!"}]
[68,"Peppers, Mini Sweet","1 lbs bag",25,null,null,"USA sourced produce. California preferred",{"$nulls":4},{"$error":"#DIV/0!"}]
[69,"Pineapple, Chunks, Fresh","5lbs. Bag",100,"x",null,"USA sourced produce. California preferred",{"$nulls":4},{"$error":"#DIV/0!"}]
[70,"Pineapple, Chunks, Fresh","Must meet 1/2 cup requirement IW",500,null,"x","USA sourced produce. California preferred",{"$nulls":4},{"$error":"#DIV/0!"}]
[71,"Pineapple, Whole",null,25,null,null,"USA sourced produce. California preferred",{"$nulls":4},{"$error":"#DIV/0!"}]
[72,"Potato, Fingerling","5 lbs bag",25,null,null,"USA sourced produce. California preferred",{"$nulls":4},{"$error":"#DIV/0!"}]
[73,"Potato, Red","25 lbs bag",25,null,null,"USA sourced produce. California preferred",{"$nulls":4},{"$error":"#DIV/0!"}]
[74,"Potato, Russet","25 lbs bag",25,null,null,"USA sourced produce. California preferred",{"$nulls":4},{"$error":"#DIV/0!"}]
[75,"Spinach, Bagged","Prewashed #20 lbs. case",100,"x",null,"USA sourced produce. California preferred",{"$nulls":4},{"$error":"#DIV/0!"}]
[76,"Tomatillos","1 lbs bag",10,null,null,"USA sourced produce. California preferred",{"$nulls":4},{"$error":"#DIV/0!"}]
[77,"Tomato, Grape/Cherry","12 baskets per case",100,"x",null,"USA sourced produce. California preferred",{"$nulls":4},{"$error":"#DIV/0!"}]
[78,"Tomato, Grape/Cherry","Must meet 1/2 cup requirement IW",3000,null,"x","USA sourced produce. California preferred",{"$nulls":4},{"$error":"#DIV/0!"}]
[79,"Watermelon, Whole, Seedless","Must meet 1/2 cup requirement IW",25,"x",null,"USA sourced produce. California preferred",{"$nulls":4},{"$error":"#DIV/0!"}]
[80,"Watermelons, Seedless, Chunks","Must meet 1/2 cup requirement IW",500,null,"x","USA sourced produce. California preferred",{"$nulls":4},{"$error":"#DIV/0!"}]
[81,"Zucchini Coins","Must meet 1/2 cup requirement IW",500,null,"x","USA sourced produce. California preferred",{"$nulls":4},{"$error":"#DIV/0!"}]
[82,"Zucchini Sticks","Must meet 1/2 cup requirement IW",3000,null,"x","USA sourced produce. California preferred",{"$nulls":4},{"$error":"#DIV/0!"}]